fUSD/lending_fUSD_20240424
["ID","MTS","AMOUNT","RATE_DAILY","PERIOD"]
[323362342,1713919846783,-500.0,0.00010958,2]
[323362343,1713919846792,-500.0,0.00010958,2]
[323362344,1713919846802,-958.48,0.00010958,2]
[323362345,1713919846811,-500.0,0.00010958,2]
[323362346,1713919846820,-500.0,0.00010958,2]
[323362347,1713919846830,-500.0,0.00010958,2]
[323362348,1713919846839,-500.0,0.00010958,2]
[323362349,1713919846848,-500.0,0.00010958,2]
[323362350,1713919846858,-990.07,0.00010958,2]
[323362351,1713919846867,-1036.41,0.00010958,2]
[323362352,1713919846876,-500.0,0.00010958,2]
[323362353,1713919846886,-500.0,0.00010958,2]
[323362354,1713919846895,-500.0,0.00010958,2]
[323362355,1713919846904,-799.61,0.00010958,2]
[323362356,1713919846913,-500.0,0.00010958,2]
[323362357,1713919846923,-1145.14,0.00010958,2]
[323362358,1713919846932,-500.0,0.00010958,2]
[323362359,1713919846941,-500.0,0.00010958,2]
[323362360,1713919846951,-500.0,0.00010958,2]
[323362361,1713919846960,-500.0,0.00010958,2]
[323362362,1713919846972,-500.0,0.00010958,2]
[323362363,1713919846981,-500.0,0.00010958,2]
[323362364,1713919846991,-849.79,0.00010958,2]
[323362365,1713919847000,-500.0,0.00010958,2]
[323362366,1713919847009,-500.0,0.00010958,2]
[323362367,1713919847018,-500.0,0.00010958,2]
[323362368,1713919847027,-500.0,0.00010958,2]
[323362369,1713919847036,-500.0,0.00010958,2]
[323362370,1713919847045,-500.0,0.00010958,2]
[323362371,1713919847055,-500.0,0.00010958,2]
[323362372,1713919847064,-501.28677746,0.00010958,2]
[323362373,1713919847074,-500.0,0.00010958,2]
[323362374,1713919847085,-500.0,0.00010958,2]
[323362375,1713919847095,-500.0,0.00010958,2]
[323362376,1713919847104,-867.68,0.00010958,2]
[323362377,1713919847113,-500.0,0.00010958,2]
[323362378,1713919847124,-500.0,0.00010958,2]
[323362379,1713919847133,-780.58,0.00010958,2]
[323362380,1713919847143,-830.18,0.00010958,2]
[323362381,1713919847153,-500.0,0.00010958,2]
[323362382,1713919847162,-500.0,0.00010958,2]
[323362383,1713919847175,-500.0,0.00010958,2]
[323362384,1713919847184,-558.11344376,0.00010958,2]
[323362385,1713919847193,-566.23690763,0.00010958,2]
[323362386,1713919847202,-500.0,0.00010958,2]
[323362387,1713919847213,-500.0,0.00010958,2]
[323362388,1713919847226,-500.0,0.00010958,2]
[323362389,1713919847236,-500.0,0.00010958,2]
[323362390,1713919847246,-500.0,0.00010958,2]
[323362391,1713919847255,-500.0,0.00010958,2]
[323362392,1713919847265,-655.59,0.00010958,2]
[323362393,1713919847274,-500.0,0.00010958,2]
[323362394,1713919847283,-607.94,0.00010958,2]
[323362395,1713919847292,-500.0,0.00010958,2]
[323362396,1713919847301,-500.0,0.00010958,2]
[323362397,1713919847310,-745.39,0.00010958,2]
[323362398,1713919847319,-500.0,0.00010958,2]
[323362399,1713919847328,-500.0,0.00010958,2]
[323362400,1713919847337,-500.0,0.00010958,2]
[323362401,1713919847347,-500.0,0.00010958,2]
[323362402,1713919847356,-500.0,0.00010958,2]
[323362403,1713919847365,-500.0,0.00010958,2]
[323362404,1713919847374,-500.0,0.00010958,2]
[323362405,1713919847383,-587.95,0.00010958,2]
[323362406,1713919847392,-500.0,0.00010958,2]
[323362407,1713919847401,-500.0,0.00010958,2]
[323362408,1713919847411,-500.0,0.00010958,2]
[323362409,1713919847420,-500.0,0.00010958,2]
[323362410,1713919847430,-500.0,0.00010958,2]
[323362411,1713919847440,-500.0,0.00010958,2]
[323362412,1713919847449,-500.0,0.00010958,2]
[323362413,1713919847458,-500.0,0.00010958,2]
[323362414,1713919847468,-842.09,0.00010958,2]
[323362415,1713919847478,-500.0,0.00010958,2]
[323362416,1713919847487,-500.0,0.00010958,2]
[323362417,1713919847498,-821.68,0.00010958,2]
[323362418,1713919847508,-500.0,0.00010958,2]
[323362419,1713919847519,-500.0,0.00010958,2]
[323362420,1713919847530,-569.15,0.00010958,2]
[323362421,1713919847540,-500.0,0.00010958,2]
[323362422,1713919847550,-500.0,0.00010958,2]
[323362423,1713919847559,-500.0,0.00010958,2]
[323362424,1713919847569,-500.0,0.00010958,2]
[323362425,1713919847578,-500.0,0.00010958,2]
[323362426,1713919847589,-500.0,0.00010958,2]
[323362427,1713919847598,-500.0,0.00010958,2]
[323362428,1713919847607,-500.0,0.00010958,2]
[323362429,1713919847616,-500.0,0.00010958,2]
[323362430,1713919847628,-500.0,0.00010958,2]
[323362431,1713919847638,-500.0,0.00010958,2]
[323362432,1713919847647,-500.0,0.00010958,2]
[323362433,1713919847656,-500.0,0.00010958,2]
[323362434,1713919847666,-770.53,0.00010958,2]
[323362435,1713919847675,-500.0,0.00010958,2]
[323362436,1713919847685,-500.0,0.00010958,2]
[323362437,1713919847694,-500.0,0.00010958,2]
[323362438,1713919847703,-500.0,0.00010958,2]
[323362439,1713919847713,-500.0,0.00010958,2]
[323362440,1713919847726,-500.0,0.00010958,2]
[323362441,1713919847735,-500.0,0.00010958,2]
[323362442,1713919847744,-500.0,0.00010958,2]
[323362443,1713919847753,-500.0,0.00010958,2]
[323362444,1713919848008,-713.32,0.00010958,2]
[323362445,1713919848022,-500.0,0.00010958,2]
[323362446,1713919848032,-500.0,0.00010958,2]
[323362447,1713919848041,-872.62,0.00010958,2]
[323362448,1713919848051,-612.41,0.00010958,2]
[323362449,1713919848062,-837.44,0.00010958,2]
[323362450,1713919848073,-500.0,0.00010958,2]
[323362451,1713919848082,-500.0,0.00010958,2]
[323362452,1713919848092,-1115.41,0.00010958,2]
[323362453,1713919848101,-500.0,0.00010958,2]
[323362454,1713919848110,-500.0,0.00010958,2]
[323362455,1713919848119,-297.30097501,0.00010958,2]
[323362456,1713919848128,-500.0,0.00010958,2]
[323362457,1713919848138,-500.0,0.00010958,2]
[323362458,1713919848149,-500.0,0.00010958,2]
[323362459,1713919848159,-500.0,0.00010958,2]
[323362460,1713919848169,-500.0,0.00010958,2]
[323362461,1713919848180,-500.0,0.00010958,2]
[323362462,1713919848189,-500.0,0.00010958,2]
[323362463,1713919848198,-500.0,0.00010958,2]
[323362464,1713919848208,-500.0,0.00010958,2]
[323362465,1713919848225,-604.38,0.00010958,2]
[323362466,1713919848234,-692.94,0.00010958,2]
[323362467,1713919848246,-500.0,0.00010958,2]
[323362468,1713919848257,-1079.13,0.00010958,2]
[323362469,1713919848267,-500.0,0.00010958,2]
[323362470,1713919848277,-563.6,0.00010958,2]
[323362471,1713919848286,-500.0,0.00010958,2]
[323362472,1713919848297,-500.0,0.00010958,2]
[323362473,1713919848307,-679.78,0.00010958,2]
[323362474,1713919848316,-920.03,0.00010958,2]
[323362475,1713919848326,-500.0,0.00010958,2]
[323362476,1713919848336,-614.69,0.00010958,2]
[323362477,1713919848346,-500.0,0.00010958,2]
[323362478,1713919848355,-277.35500906,0.00010958,2]
[323362479,1713919848364,-500.0,0.00010958,2]
[323362480,1713919848374,-1175.01,0.00010958,2]
[323362481,1713919848383,-529.1,0.00010958,2]
[323362482,1713919848393,-500.0,0.00010958,2]
[323362483,1713919848402,-500.0,0.00010958,2]
[323362484,1713919848411,-500.0,0.00010958,2]
[323362485,1713919848420,-500.0,0.00010958,2]
[323362486,1713919848429,-500.0,0.00010958,2]
[323362487,1713919848439,-500.0,0.00010958,2]
[323362488,1713919848448,-500.0,0.00010958,2]
[323362489,1713919848457,-500.0,0.00010958,2]
[323362490,1713919848466,-500.0,0.00010958,2]
[323362491,1713919848481,-500.0,0.00010958,2]
[323362492,1713919848491,-500.0,0.00010958,2]
[323362493,1713919848500,-500.0,0.00010958,2]
[323362494,1713919848509,-500.0,0.00010958,2]
[323362495,1713919848519,-652.56,0.00010958,2]
[323362496,1713919848529,-500.0,0.00010958,2]
[323362497,1713919848538,-501.63321501,0.00010958,2]
[323362498,1713919848548,-500.0,0.00010958,2]
[323362499,1713919848557,-500.0,0.00010958,2]
[323362500,1713919848566,-500.0,0.00010958,2]
[323362501,1713919848576,-500.0,0.00010958,2]
[323362502,1713919848585,-500.0,0.00010958,2]
[323362503,1713919848594,-500.0,0.00010958,2]
[323362504,1713919848603,-503.78,0.00010958,2]
[323362505,1713919848612,-631.61,0.00010958,2]
[323362506,1713919848621,-527.85,0.00010958,2]
[323362507,1713919848632,-564.1,0.00010958,2]
[323362508,1713919848642,-819.68,0.00010958,2]
[323362509,1713919848651,-500.0,0.00010958,2]
[323362510,1713919848660,-500.0,0.00010958,2]
[323362511,1713919848671,-500.0,0.00010958,2]
[323362512,1713919848681,-500.00313222,0.00010958,2]
[323362513,1713919848690,-500.0,0.00010958,2]
[323362514,1713919848700,-500.0,0.00010958,2]
[323362515,1713919848709,-500.0,0.00010958,2]
[323362516,1713919848723,-500.0,0.00010958,2]
[323362517,1713919848732,-500.0,0.00010958,2]
[323362518,1713919848741,-500.0,0.00010958,2]
[323362519,1713919848751,-883.32,0.00010958,2]
[323362520,1713919848760,-500.0,0.00010958,2]
[323362521,1713919848770,-968.99,0.00010958,2]
[323362522,1713919848779,-500.0,0.00010958,2]
[323362523,1713919848788,-922.54,0.00010958,2]
[323362524,1713919848798,-500.0,0.00010958,2]
[323362525,1713919848807,-500.0,0.00010958,2]
[323362526,1713919848816,-300.84405891,0.00010958,2]
[323362527,1713919848826,-502.96076092,0.00010958,2]
[323362528,1713919848835,-605.65,0.00010958,2]
[323362529,1713919848844,-500.0,0.00010958,2]
[323362530,1713919848854,-500.0,0.00010958,2]
[323362531,1713919848862,-500.0,0.00010958,2]
[323362532,1713919848871,-500.0,0.00010958,2]
[323362533,1713919848880,-500.0,0.00010958,2]
[323362534,1713919848889,-500.0,0.00010958,2]
[323362535,1713919848899,-500.0,0.00010958,2]
[323362536,1713919848908,-1211.53,0.00010958,2]
[323362537,1713919848917,-524.73021264,0.00010958,2]
[323362538,1713919848926,-500.0,0.00010958,2]
[323362539,1713919848935,-500.0,0.00010958,2]
[323362540,1713919848944,-500.0,0.00010958,2]
[323362541,1713919848953,-500.0,0.00010958,2]
[323362542,1713919848962,-500.0,0.00010958,2]
[323362543,1713919848974,-500.0,0.00010958,2]
[323362544,1713919848983,-500.0,0.00010958,2]
[323362545,1713919848993,-500.0,0.00010958,2]
[323362546,1713919849003,-501.81,0.00010958,2]
[323362547,1713919849013,-500.0,0.00010958,2]
[323362548,1713919849022,-625.27,0.00010958,2]
[323362549,1713919849033,-500.0,0.00010958,2]
[323362550,1713919849042,-337.3,0.00010958,2]
[323362551,1713919849052,-500.0,0.00010958,2]
[323362552,1713919849062,-500.0,0.00010958,2]
[323362553,1713919849071,-500.0,0.00010958,2]
[323362554,1713919849080,-500.0,0.00010958,2]
[323362555,1713919849090,-500.0,0.00010958,2]
[323362556,1713919849101,-500.0,0.00010958,2]
[323362557,1713919849110,-500.0,0.00010958,2]
[323362558,1713919849120,-897.37,0.00010958,2]
[323362559,1713919849129,-500.0,0.00010958,2]
[323362560,1713919849138,-500.0,0.00010958,2]
[323362561,1713919849147,-1044.33,0.00010958,2]
[323362562,1713919849157,-1119.4,0.00010958,2]
[323362563,1713919849166,-500.0,0.00010958,2]
[323362564,1713919849177,-729.78,0.00010958,2]
[323362565,1713919849186,-500.0,0.00010958,2]
[323362566,1713919849195,-500.0,0.00010958,2]
[323362567,1713919849204,-500.0,0.00010958,2]
[323362568,1713919849213,-654.66,0.00010958,2]
[323362569,1713919849224,-447.88,0.00010958,2]
[323362570,1713919849233,-500.0,0.00010958,2]
[323362571,1713919849242,-500.0,0.00010958,2]
[323362572,1713919849252,-500.0,0.00010958,2]
[323362573,1713919849261,-500.0,0.00010958,2]
[323362574,1713919849270,-500.0,0.00010958,2]
[323362575,1713919849279,-500.0,0.00010958,2]
[323362576,1713919849288,-500.0,0.00010958,2]
[323362577,1713919849297,-500.0,0.00010958,2]
[323362578,1713919849306,-1245.27,0.00010958,2]
[323362579,1713919849315,-500.0,0.00010958,2]
[323362580,1713919849324,-715.56,0.00010958,2]
[323362581,1713919849334,-500.0,0.00010958,2]
[323362582,1713919849343,-725.38,0.00010958,2]
[323362583,1713919849352,-500.0,0.00010958,2]
[323362584,1713919849361,-500.0,0.00010958,2]
[323362585,1713919849371,-632.66366171,0.00010958,2]
[323362586,1713919849380,-500.0,0.00010958,2]
[323362587,1713919849389,-854.34,0.00010958,2]
[323362588,1713919849399,-500.0,0.00010958,2]
[323362589,1713919849408,-500.0,0.00010958,2]
[323362590,1713919849417,-500.0,0.00010958,2]
[323362591,1713919849426,-500.0,0.00010958,2]
[323362592,1713919849435,-500.0,0.00010958,2]
[323362593,1713919849444,-500.0,0.00010958,2]
[323362594,1713919849452,-500.0,0.00010958,2]
[323362595,1713919849462,-500.0,0.00010958,2]
[323362596,1713919849475,-500.0,0.00010958,2]
[323362597,1713919849484,-786.78,0.00010958,2]
[323362598,1713919849493,-500.0,0.00010958,2]
[323362599,1713919849502,-560.75,0.00010958,2]
[323362600,1713919849511,-500.0,0.00010958,2]
[323362601,1713919849520,-500.0,0.00010958,2]
[323362602,1713919849530,-500.0,0.00010958,2]
[323362603,1713919849539,-500.0,0.00010958,2]
[323362604,1713919849548,-1001.13,0.00010958,2]
[323362605,1713919849557,-500.0,0.00010958,2]
[323362606,1713919849567,-277.3393608,0.00010958,2]
[323362607,1713919849576,-500.0,0.00010958,2]
[323362608,1713919849585,-500.0,0.00010958,2]
[323362609,1713919849594,-500.0,0.00010958,2]
[323362610,1713919849603,-500.0,0.00010958,2]
[323362611,1713919849611,-500.0,0.00010958,2]
[323362612,1713919849620,-500.0,0.00010958,2]
[323362613,1713919849629,-500.0,0.00010958,2]
[323362614,1713919849638,-500.0,0.00010958,2]
[323362615,1713919849647,-500.0,0.00010958,2]
[323362616,1713919849659,-500.0,0.00010958,2]
[323362617,1713919849668,-500.0,0.00010958,2]
[323362618,1713919849677,-500.0,0.00010958,2]
[323362619,1713919849686,-1040.38,0.00010958,2]
[323362620,1713919849695,-500.0,0.00010958,2]
[323362621,1713919849705,-500.0,0.00010958,2]
[323362622,1713919849714,-500.0,0.00010958,2]
[323362623,1713919849727,-500.0,0.00010958,2]
[323362624,1713919849737,-500.0,0.00010958,2]
[323362625,1713919849746,-500.0,0.00010958,2]
[323362626,1713919849755,-500.0,0.00010958,2]
[323362627,1713919849764,-500.0,0.00010958,2]
[323362628,1713919849773,-501.03,0.00010958,2]
[323362629,1713919849782,-503.59421494,0.00010958,2]
[323362630,1713919849791,-500.0,0.00010958,2]
[323362631,1713919849800,-1052.27,0.00010958,2]
[323362632,1713919849809,-885.24,0.00010958,2]
[323362633,1713919849818,-304.04,0.00010958,14]
[323362634,1713919849828,-500.0,0.00010958,2]
[323362635,1713919849837,-500.0,0.00010958,2]
[323362636,1713919849846,-500.0,0.00010958,2]
[323362637,1713919849855,-771.75,0.00010958,2]
[323362638,1713919849865,-500.0,0.00010958,2]
[323362639,1713919849874,-697.5,0.00010958,2]
[323362640,1713919849883,-576.62361394,0.00010958,2]
[323362641,1713919849892,-500.0,0.00010958,2]
[323362642,1713919849901,-500.0,0.00010958,2]
[323362643,1713919849910,-1028.95,0.00010958,2]
[323362644,1713919849919,-501.34167763,0.00010958,2]
[323362645,1713919849928,-500.0,0.00010958,2]
[323362646,1713919849939,-500.0,0.00010958,2]
[323362647,1713919849949,-500.0,0.00010958,2]
[323362648,1713919849959,-1040.13,0.00010958,2]
[323362649,1713919849971,-700.7,0.00010958,2]
[323362650,1713919849980,-500.0,0.00010958,2]
[323362651,1713919849989,-266.59,0.00010958,2]
[323362652,1713919849998,-500.0,0.00010958,2]
[323362653,1713919850008,-500.0,0.00010958,2]
[323362654,1713919850017,-500.0,0.00010958,2]
[323362655,1713919850027,-500.0,0.00010958,2]
[323362656,1713919850037,-705.97,0.00010958,2]
[323362657,1713919850045,-500.0,0.00010958,2]
[323362658,1713919850054,-658.06,0.00010958,2]
[323362659,1713919850064,-500.0,0.00010958,2]
[323362660,1713919850073,-788.32,0.00010958,2]
[323362661,1713919850082,-500.0,0.00010958,2]
[323362662,1713919850091,-500.0,0.00010958,2]
[323362663,1713919850101,-500.0,0.00010958,2]
[323362664,1713919850110,-500.0,0.00010958,2]
[323362665,1713919850119,-500.0,0.00010958,2]
[323362666,1713919850129,-648.43,0.00010958,2]
[323362667,1713919850138,-500.0,0.00010958,2]
[323362668,1713919850149,-500.0,0.00010958,2]
[323362669,1713919850158,-244.16546813,0.00010958,2]
[323362670,1713919850934,-387.03994313,0.00010957,2]
[323362671,1713919850944,-255.83453187,0.00010958,2]
[323362672,1713919850953,-500.0,0.00010958,2]
[323362673,1713919850962,-500.0,0.00010958,2]
[323362674,1713919850973,-500.0,0.00010958,2]
[323362675,1713919850982,-843.59,0.00010958,2]
[323362676,1713919850991,-500.0,0.00010958,2]
[323362677,1713919851000,-922.17,0.00010958,2]
[323362678,1713919851009,-500.0,0.00010958,2]
[323362679,1713919851018,-500.0,0.00010958,2]
[323362680,1713919851028,-500.0,0.00010958,2]
[323362681,1713919851037,-500.0,0.00010958,2]
[323362682,1713919851046,-576.97969752,0.00010958,2]
[323362683,1713919851056,-500.0,0.00010958,2]
[323362684,1713919851065,-500.0,0.00010958,2]
[323362685,1713919851075,-758.51,0.00010958,2]
[323362686,1713919851084,-620.36,0.00010958,2]
[323362687,1713919851093,-500.0,0.00010958,2]
[323362688,1713919851103,-859.44,0.00010958,2]
[323362689,1713919851112,-500.0,0.00010958,2]
[323362690,1713919851121,-1094.59,0.00010958,2]
[323362691,1713919851131,-500.0,0.00010958,2]
[323362692,1713919851140,-500.0,0.00010958,2]
[323362693,1713919851149,-500.0,0.00010958,2]
[323362694,1713919851158,-501.31786045,0.00010958,2]
[323362695,1713919851167,-500.0,0.00010958,2]
[323362696,1713919851178,-500.0,0.00010958,2]
[323362697,1713919851187,-500.0,0.00010958,2]
[323362698,1713919851197,-533.19,0.00010958,2]
[323362699,1713919851207,-504.33,0.00010958,2]
[323362700,1713919851216,-500.32298964,0.00010958,2]
[323362701,1713919851229,-500.0,0.00010958,2]
[323362702,1713919851238,-500.0,0.00010958,2]
[323362703,1713919851248,-500.0,0.00010958,2]
[323362704,1713919851257,-500.0,0.00010958,2]
[323362705,1713919851268,-635.23,0.00010958,2]
[323362706,1713919851278,-826.72,0.00010958,2]
[323362707,1713919851289,-1007.36,0.00010958,2]
[323362708,1713919851299,-500.0,0.00010958,2]
[323362709,1713919851308,-760.76,0.00010958,2]
[323362710,1713919851317,-500.35228013,0.00010958,2]
[323362711,1713919851327,-500.0,0.00010958,2]
[323362712,1713919851336,-500.0,0.00010958,2]
[323362713,1713919851345,-500.58888743,0.00010958,2]
[323362714,1713919851354,-500.0,0.00010958,2]
[323362715,1713919851364,-500.0,0.00010958,2]
[323362716,1713919851374,-500.0,0.00010958,2]
[323362717,1713919851383,-500.0,0.00010958,2]
[323362718,1713919851392,-500.0,0.00010958,2]
[323362719,1713919851402,-500.0,0.00010958,2]
[323362720,1713919851411,-930.37,0.00010958,2]
[323362721,1713919851420,-500.0,0.00010958,2]
[323362722,1713919851431,-500.0,0.00010958,2]
[323362723,1713919851442,-500.0,0.00010958,2]
[323362724,1713919851451,-500.0,0.00010958,2]
[323362725,1713919851460,-500.0,0.00010958,2]
[323362726,1713919851470,-500.0,0.00010958,2]
[323362727,1713919851480,-500.0,0.00010958,2]
[323362728,1713919851490,-503.28266608,0.00010958,2]
[323362729,1713919851499,-500.0,0.00010958,2]
[323362730,1713919851508,-427.99269462,0.00010958,2]
[323362731,1713919851521,-72.00730538,0.00010958,2]
[323362732,1713919851530,-500.0,0.00010958,2]
[323362733,1713919851539,-603.3170614,0.00010958,2]
[323362734,1713919851648,-279.2929386,0.00010958,2]
[323362735,1713919851657,-321.35702245,0.00010958,2]
[323362736,1713919852863,-178.64297755,0.00010958,2]
[323362737,1713919852873,-500.0,0.00010958,2]
[323362738,1713919852882,-150.0,0.00010958,2]
[323362739,1713919852891,-336.50134824,0.00010958,2]
[323362740,1713919852902,-163.49865176,0.00010958,2]
[323362741,1713919852912,-500.0,0.00010958,2]
[323362742,1713919852921,-833.62,0.00010958,2]
[323362743,1713919852931,-795.9,0.00010958,2]
[323362744,1713919852940,-500.0,0.00010958,2]
[323362745,1713919852950,-510.37,0.00010958,2]
[323362746,1713919852960,-500.0,0.00010958,2]
[323362747,1713919852969,-222.02,0.00010958,2]
[323362748,1713919852982,-500.0,0.00010958,2]
[323362749,1713919852992,-500.0,0.00010958,2]
[323362750,1713919853001,-500.0,0.00010958,2]
[323362751,1713919853010,-500.0,0.00010958,2]
[323362752,1713919853020,-500.0,0.00010958,2]
[323362753,1713919853030,-500.0,0.00010958,2]
[323362754,1713919853039,-500.0,0.00010958,2]
[323362755,1713919853048,-500.0,0.00010958,2]
[323362756,1713919853057,-193.38413195,0.00010958,2]
[323362757,1713919853066,-500.0,0.00010958,2]
[323362758,1713919853075,-500.0,0.00010958,2]
[323362759,1713919853084,-500.0,0.00010958,2]
[323362760,1713919853093,-500.0,0.00010958,2]
[323362761,1713919853101,-500.0,0.00010958,2]
[323362762,1713919853110,-500.0,0.00010958,2]
[323362763,1713919853119,-500.0,0.00010958,2]
[323362764,1713919853127,-500.0,0.00010958,2]
[323362765,1713919853136,-500.0,0.00010958,2]
[323362766,1713919853145,-500.0,0.00010958,2]
[323362767,1713919853155,-828.85,0.00010958,2]
[323362768,1713919853164,-352.35721629,0.00010958,2]
[323362769,1713919887277,4597.22,0.0002302,120]
[323362770,1713920087581,151.0,0.00020469,120]
[323362771,1713920388626,151.0,0.00020469,120]
[323362773,1713920695627,-155.0,8.328e-05,2]
[323362774,1713920695656,-403.39,8.329e-05,2]
[323362775,1713920695681,-171.76,0.00010128,2]
[323362776,1713920695708,-150.0,0.00010167,2]
[323362777,1713920695733,-5000.0,0.00010167,2]
[323362778,1713920695760,-880.0,0.00010168,2]
[323362779,1713920695786,-403.39,0.00010593,2]
[323362780,1713920695812,-635.0117,0.00010858,2]
[323362781,1713920695839,-5292.24106767,0.00010885,2]
[323362782,1713920695864,-1000.0,0.000109,2]
[323362783,1713920695895,-173.31562882,0.000109,2]
[323362784,1713920695923,-6758.5382025,0.00010949,2]
[323362785,1713920695951,-1113.3596112,0.00010949,2]
[323362786,1713920695982,-1342.6063163,0.00010949,2]
[323362787,1713920696009,-666.422375,0.00010949,2]
[323362788,1713920696036,-850.4441578,0.00010949,2]
[323362789,1713920696062,-577.0978484,0.00010949,2]
[323362790,1713920696089,-499.99,0.00010957,2]
[323362791,1713920696116,-503.66672855,0.00010957,2]
[323362792,1713920696144,-15550.6,0.00010957,2]
[323362793,1713920696170,-502.47758651,0.00010958,2]
[323362794,1713920696196,-500.0,0.00010958,2]
[323362795,1713920696223,-500.81928692,0.00010958,2]
[323362796,1713920696250,-500.86393307,0.00010958,2]
[323362797,1713920696276,-500.0,0.00010958,2]
[323362798,1713920696304,-500.0,0.00010958,2]
[323362799,1713920696331,-500.43346785,0.00010958,2]
[323362800,1713920696359,-500.0,0.00010958,2]
[323362801,1713920696388,-500.0,0.00010958,2]
[323362802,1713920696415,-500.0,0.00010958,2]
[323362803,1713920696444,-595.62,0.00010958,2]
[323362804,1713920696469,-500.0,0.00010958,2]
[323362805,1713920696495,-500.0,0.00010958,2]
[323362806,1713920696521,-500.0,0.00010958,2]
[323362807,1713920696547,-500.0,0.00010958,2]
[323362808,1713920696573,-500.0,0.00010958,2]
[323362809,1713920696599,-585.03,0.00010958,2]
[323362810,1713920696659,-500.0,0.00010958,2]
[323362811,1713920696689,-500.0,0.00010958,2]
[323362812,1713920696719,-500.0,0.00010958,2]
[323362813,1713920696750,-500.0,0.00010958,2]
[323362814,1713920696778,-500.0,0.00010958,2]
[323362815,1713920696805,-367.92208941,0.00010958,2]
[323362816,1713920874546,5000.0,0.00023,90]
[323362817,1713920906021,3000.0,0.000251,120]
[323362818,1713920995432,151.0,0.00019446,120]
[323362827,1713921031702,-505.0,0.0001,2]
[323362828,1713921031713,-229.40271059,0.0001,2]
[323362829,1713921031738,-473.67109605,0.0001,2]
[323362830,1713921031789,-504.88498859,0.0001,2]
[323362831,1713921031806,-2609.9967445,0.0001,2]
[323362842,1713921037563,-528.10701013,0.0001,2]
[323362843,1713921037575,-427.42137521,0.0001,2]
[323362844,1713921037674,-226.51607493,0.0001,2]
[323362845,1713921037683,-222.63201052,0.0001022,2]
[323362846,1713921037726,-204.54787955,0.0001022,2]
[323362847,1713921037735,-170.76,0.00010221,2]
[323362848,1713921037744,-109.7769672,0.00010367,2]
[323362849,1713921037755,-80.0530328,0.00010367,2]
[323362850,1713921037764,-300.0,0.000107,3]
[323362851,1713921037773,-95.17449017,0.000108,3]
[323362852,1713921037847,-483.63365887,0.000108,3]
[323362853,1713921037859,-121.19185096,0.000108,3]
[323362854,1713921037869,-361.35866381,0.0001085,2]
[323362855,1713921037881,-646.05871805,0.0001085,2]
[323362856,1713921037942,-386.07541814,0.0001085,2]
[323362857,1713921037952,-666.1619,0.00010858,2]
[323362858,1713921037962,-1778.4325,0.00010858,2]
[323362860,1713921037971,-7135.5633,0.00010858,2]
[323362861,1713921037981,-7500.0,0.00010858,2]